bitfinex/quotes_ETHUSD_20251130
["timestamp","ask_amount","ask_price","bid_price","bid_amount"]
[1764493216113,12.41308317,3012.0,3011.9,0.001]
[1764493216420,11.93418317,3012.0,3011.9,0.001]
[1764493216913,11.42978238,3012.0,3011.9,0.2914]
[1764493219225,10.71427838,3012.0,3011.9,0.5818]
[1764493219413,10.85074121,3012.0,3011.9,0.5818]
[1764493219722,11.25624521,3012.0,3011.9,0.001]
[1764493219922,14.14672545,3012.0,3011.9,0.001]
[1764493220421,13.65772545,3012.0,3011.9,0.001]
[1764493221498,14.12412545,3012.0,3011.9,0.001]
[1764493222123,23.41513545,3012.0,3011.9,0.001]
[1764493222330,20.49008245,3012.0,3011.9,0.001]
[1764493222629,16.22808545,3012.0,3011.9,0.001]
[1764493223023,15.79392745,3012.0,3011.9,0.001]
[1764493223226,13.17882545,3012.0,3011.9,0.001]
[1764493224335,13.17882545,3012.0,3011.9,0.2914]
[1764493224542,11.42976349,3012.0,3011.9,0.001]
[1764493224747,11.90966349,3012.0,3011.9,0.001]
[1764493225342,12.36266349,3012.0,3011.9,0.001]
[1764493227444,12.86706428,3012.0,3011.9,0.001]
[1764493227640,14.82775855,3012.0,3011.9,0.001]
[1764493230845,18.32575855,3012.0,3011.9,0.001]
[1764493231046,14.82775855,3012.0,3011.9,0.001]
[1764493231412,36.26344055,3012.0,3011.9,0.001]
[1764493231613,36.36344055,3012.0,3011.9,0.001]
[1764493231820,36.6909761,3012.0,3011.9,0.001]
[1764493232535,45.2552941,3012.0,3011.9,0.001]
[1764493235635,0.505504,3010.9,3010.4,0.2914]
[1764493235820,1.44109811,3010.9,3010.4,0.2914]
[1764493236043,1.92099811,3010.9,3010.4,0.2914]
[1764493236235,1.73249811,3010.9,3010.4,0.2914]
[1764493236430,1.73249811,3010.9,3010.8,0.2914]
[1764493236635,5.05376417,3010.9,3010.8,0.2914]
[1764493238037,4.84376417,3010.9,3010.8,0.2914]
[1764493238568,5.05376417,3010.9,3010.8,0.5818]
[1764493238863,4.95376417,3010.9,3010.8,0.5818]
[1764493239529,5.05376417,3010.9,3010.8,0.5818]
[1764493240962,4.43826017,3010.9,3010.8,0.5818]
[1764493241266,4.54826017,3010.9,3010.8,0.5818]
[1764493245132,4.64826017,3010.9,3010.8,0.5818]
[1764493247454,4.33826017,3010.9,3010.8,0.5818]
[1764493247763,4.54826017,3010.9,3010.8,0.5818]
[1764493249871,4.33826017,3010.9,3010.8,0.5818]
[1764493250176,4.54826017,3010.9,3010.8,0.5818]
[1764493254470,4.54826017,3010.9,3010.8,0.2914]
[1764493254670,4.64826017,3010.9,3010.8,0.5818]
[1764493254844,4.64826017,3010.9,3010.8,0.2914]
[1764493256477,4.64826017,3010.9,3010.8,0.5818]
[1764493257051,4.35686017,3010.9,3010.8,0.5818]
[1764493257376,4.35686017,3010.9,3010.8,0.2914]
[1764493258148,6.05404577,3010.9,3010.8,0.001]
[1764493258357,6.34544577,3010.9,3010.8,0.001]
[1764493258760,6.79554577,3010.9,3010.8,0.001]
[1764493259371,6.34544577,3010.9,3010.8,0.001]
[1764493259977,6.79554577,3010.9,3010.8,0.001]
[1764493260147,6.34544577,3010.9,3010.8,0.001]
[1764493260353,6.58554577,3010.9,3010.8,0.001]
[1764493260550,5.87974577,3010.9,3010.8,0.2914]
[1764493260751,4.84376417,3010.9,3010.8,0.2914]
[1764493260951,5.05376417,3010.9,3010.8,0.2914]
[1764493261179,4.84376417,3010.9,3010.8,0.2914]
[1764493261397,5.05376417,3010.9,3010.8,0.2914]
[1764493261586,6.15686417,3010.9,3010.8,0.001]
[1764493261781,6.99435616,3010.9,3010.8,0.001]
[1764493265068,6.54425616,3010.9,3010.8,0.001]
[1764493265299,6.99435616,3010.9,3010.8,0.001]
[1764493265602,14.13235499,3010.9,3010.8,0.001]
[1764493265766,14.48889054,3010.9,3010.8,0.001]
[1764493266083,30.48682554,3010.9,3010.8,0.001]
[1764493267158,34.36979354,3010.9,3010.8,0.001]
[1764493267666,32.69960654,3010.9,3010.8,0.001]
[1764493268075,42.01155354,3010.9,3010.1,1e-08]
[1764493268298,5.01771653,3010.2,3010.1,1e-08]
[1764493268479,5.57781653,3010.2,3010.1,1e-08]
[1764493268978,5.96821653,3010.2,3010.1,1e-08]
[1764493270192,9.08025493,3010.2,3010.1,1e-08]
[1764493270392,9.69465572,3010.2,3010.1,1e-08]
[1764493270596,10.73508884,3010.2,3010.1,1e-08]
[1764493271879,10.52508884,3010.2,3010.1,1e-08]
[1764493272080,10.73508884,3010.2,3010.1,1e-08]
[1764493272970,10.23068805,3010.2,3010.1,1e-08]
[1764493273195,5.30923651,3010.2,3010.1,1e-08]
[1764493273400,4.43803251,3010.2,3010.1,0.43860001]
[1764493273565,4.64803251,3010.2,3010.1,0.43860001]
[1764493273765,4.84353651,3010.2,3010.1,0.43860001]
[1764493273972,5.05353651,3010.2,3010.1,0.43860001]
[1764493274192,8.74015493,3010.2,3010.1,1e-08]
[1764493274396,8.27445493,3010.2,3010.1,0.29040001]
[1764493274605,5.05353651,3010.2,3010.1,0.29040001]
[1764493274821,8.74015493,3010.2,3010.1,1e-08]
[1764493274970,8.53015493,3010.2,3010.1,1e-08]
[1764493275162,8.27445493,3010.2,3010.1,1e-08]
[1764493275971,8.74015493,3010.2,3010.1,1e-08]
[1764493276192,9.69465572,3010.2,3010.1,1e-08]
[1764493278881,8.74015493,3010.2,3010.1,1e-08]
[1764493280099,4.84353651,3010.2,3010.1,0.29040001]
[1764493280287,5.05353651,3010.2,3010.1,1e-08]
[1764493281180,8.27445493,3010.2,3010.1,1e-08]
[1764493281571,8.74015493,3010.2,3010.1,1e-08]
[1764493282097,9.99137329,3010.2,3010.1,1e-08]
[1764493282409,10.48687329,3010.2,3010.1,1e-08]
[1764493285020,9.99137329,3010.2,3010.1,1e-08]
[1764493285307,8.27445493,3010.2,3010.1,1e-08]
[1764493285605,8.77315493,3010.2,3010.1,1e-08]
[1764493286373,8.27445493,3010.2,3010.1,1e-08]
[1764493286573,8.73785493,3010.2,3010.1,1e-08]
[1764493287508,3.6124384,3010.2,3010.1,0.72900001]
[1764493287705,3.8224384,3010.2,3010.1,0.72900001]
[1764493288003,4.64803251,3010.2,3010.1,0.72900001]
[1764493288600,10.03925184,3010.2,3010.1,1e-08]
[1764493288779,13.24148705,3010.2,3010.1,1e-08]
[1764493289306,13.72858705,3010.2,3010.1,1e-08]
[1764493289704,13.51858705,3010.2,3010.1,1e-08]
[1764493289906,12.62190505,3010.2,3010.1,1e-08]
[1764493291206,9.32685105,3010.2,3010.1,1e-08]
[1764493291383,8.73985493,3010.2,3010.1,1e-08]
[1764493292214,8.06645493,3010.2,3010.1,0.29040001]
[1764493292413,5.05553651,3010.2,3010.1,0.43860001]
[1764493292585,4.84553651,3010.2,3010.1,0.43860001]
[1764493292792,5.05553651,3010.2,3010.1,0.43860001]
[1764493293100,3.6144384,3010.2,3010.1,0.72900001]
[1764493293418,0.002,3010.2,3010.1,0.72900001]
[1764493293619,0.002,3010.2,3010.1,1.12409185]
[1764493294198,3.3240384,3010.2,3010.1,1.12409185]
[1764493294716,3.3240384,3010.2,3010.1,0.72900001]
[1764493294919,0.212,3010.2,3010.1,0.72900001]
[1764493296105,0.002,3010.2,3010.1,0.72900001]
[1764493296303,0.212,3010.2,3010.1,0.72900001]
[1764493297426,0.002,3010.2,3010.1,0.72900001]
[1764493297739,0.212,3010.2,3010.1,0.72900001]
[1764493299722,3.6340384,3010.2,3010.1,0.43860001]
[1764493300118,3.6340384,3010.2,3010.1,0.72900001]
[1764493300328,3.5340384,3010.2,3010.1,0.72900001]
[1764493301922,3.6340384,3010.2,3010.1,0.72900001]
[1764493302246,3.6340384,3010.2,3010.1,1e-08]
[1764493302633,4.0974384,3010.2,3010.1,1e-08]
[1764493302947,5.12117802,3010.2,3010.1,1e-08]
[1764493303313,5.96548877,3010.2,3010.1,1e-08]
[1764493303506,6.69108288,3010.2,3010.1,1e-08]
[1764493304019,5.43258288,3010.2,3010.1,1e-08]
[1764493304211,5.74258288,3010.2,3010.1,1e-08]
[1764493304410,6.69108288,3010.2,3010.1,1e-08]
[1764493305154,6.20598288,3010.2,3010.1,1e-08]
[1764493305509,6.69108288,3010.2,3010.1,1e-08]
[1764493305857,6.48108288,3010.2,3010.1,1e-08]
[1764493306012,6.69108288,3010.2,3010.1,1e-08]
[1764493306210,5.84677213,3010.2,3010.1,1e-08]
[1764493306625,5.36167213,3010.2,3010.1,1e-08]
[1764493307549,5.84677213,3010.2,3010.1,1e-08]
[1764493309229,4.58827213,3010.2,3010.1,1e-08]
[1764493309539,4.89827213,3010.2,3010.1,1e-08]
[1764493309732,5.36167213,3010.2,3010.1,1e-08]
[1764493311138,5.84677213,3010.2,3010.1,1e-08]
[1764493314323,6.76364229,3010.2,3010.1,1e-08]
[1764493314525,5.81514229,3010.2,3010.1,1e-08]
[1764493314831,4.89827213,3010.2,3010.1,0.29040001]
[1764493316758,4.89827213,3010.2,3010.1,1e-08]
[1764493317420,4.76513651,3010.2,3010.1,0.43860001]
[1764493317736,4.76513651,3010.2,3010.1,1e-08]
[1764493317938,4.76513651,3010.2,3010.1,0.29040001]
[1764493318654,4.55513651,3010.2,3010.1,0.43860001]
[1764493318863,4.35963251,3010.2,3010.1,0.72900001]
[1764493319655,4.35963251,3010.2,3010.1,0.43860001]
[1764493320530,4.35963251,3010.2,3010.1,1e-08]
[1764493322153,4.35963251,3010.2,3010.1,0.29040001]
[1764493322654,4.35963251,3010.2,3010.1,0.43860001]
[1764493323362,4.35963251,3010.2,3010.1,0.29040001]
[1764493323659,4.35963251,3010.2,3010.1,1e-08]
[1764493323823,4.81243251,3010.2,3010.1,1e-08]
[1764493325361,4.35963251,3010.2,3010.1,1e-08]
[1764493325566,4.35963251,3010.2,3010.1,0.29040001]
[1764493326365,4.35963251,3010.2,3010.1,1e-08]
[1764493326944,4.76513651,3010.2,3010.1,0.29040001]
[1764493327346,4.76513651,3010.2,3010.1,0.72900001]
[1764493327987,4.76513651,3010.2,3010.1,0.43860001]
[1764493328436,4.76513651,3010.2,3010.1,0.29040001]
[1764493328632,4.76513651,3010.2,3010.1,1e-08]
[1764493329282,5.21793651,3010.2,3010.1,1e-08]
[1764493329570,5.68623651,3010.2,3010.1,1e-08]
[1764493329731,5.21793651,3010.2,3010.1,1e-08]
[1764493331267,4.76513651,3010.2,3010.1,1e-08]
[1764493333441,5.21793651,3010.2,3010.1,1e-08]
[1764493333642,6.60036725,3010.2,3010.1,1e-08]
[1764493334070,6.73351439,3010.2,3010.1,1e-08]
[1764493334674,9.95644688,3010.2,3010.1,1e-08]
[1764493334866,17.09448868,3010.2,3010.1,1e-08]
[1764493335051,1.8354989,3010.1,3010.0,0.001]
[1764493335271,5.57644199,3010.1,3010.0,0.001]
[1764493335798,26.49393697,3010.1,3010.0,0.001]
[1764493335960,29.81608573,3010.1,3010.0,0.001]
[1764493336690,32.71965473,3010.1,3010.0,0.001]
[1764493337101,19.13490073,3010.1,3010.0,0.001]
[1764493337460,39.22165473,3010.1,3010.0,0.001]
[1764493337686,40.21800373,3010.1,3010.0,0.001]
[1764493337891,19.13490073,3010.1,3010.0,0.001]
[1764493338482,40.19470673,3010.1,3010.0,0.001]
[1764493338686,19.13490073,3010.1,3010.0,0.001]
[1764493339016,39.99470673,3010.1,3010.0,0.001]
[1764493339195,36.49270673,3010.1,3010.0,0.001]
[1764493339865,34.49170473,3010.1,3010.0,0.001]
[1764493340498,26.07796173,3010.1,3010.0,0.001]
[1764493340664,15.53290073,3010.1,3010.0,0.001]
[1764493340866,14.96313854,3010.1,3010.0,0.001]
[1764493341084,21.71385454,3010.1,3010.0,0.001]
[1764493341290,14.75313854,3010.1,3010.0,0.001]
[1764493341512,14.96313854,3010.1,3010.0,0.001]
[1764493341871,15.46859075,3010.1,3010.0,0.001]
[1764493342072,20.99334375,3010.1,3010.0,0.001]
[1764493342799,20.78334375,3010.1,3010.0,0.001]
[1764493342972,26.32299075,3010.1,3010.0,0.001]
[1764493343174,15.46859075,3010.1,3010.0,0.001]
[1764493343391,25.66280175,3010.1,3010.0,0.001]
[1764493343772,15.46859075,3010.1,3010.0,0.001]
[1764493344579,15.60177824,3010.1,3010.0,0.001]
[1764493346907,15.19632603,3010.1,3010.0,0.001]
[1764493348176,15.60177824,3010.1,3010.0,0.001]
[1764493349079,19.10377824,3010.1,3010.0,0.001]
[1764493349477,18.89377824,3010.1,3010.0,0.001]
[1764493349683,19.10377824,3010.1,3010.0,0.001]
[1764493350478,28.20472424,3010.1,3010.0,0.001]
[1764493350694,25.85626724,3010.1,3010.0,0.001]
[1764493350902,19.10377824,3010.1,3010.0,0.001]
[1764493351108,18.03399603,3010.1,3010.0,0.001]
[1764493351296,14.98632603,3010.1,3010.0,0.001]
[1764493351608,17.70408503,3010.1,3010.0,0.001]
[1764493351810,17.70408503,3010.1,3010.0,0.2914]
[1764493351811,9.91533625,3010.1,3010.0,0.2914]
[1764493351997,10.12533625,3010.1,3010.0,0.2914]
[1764493352179,10.85093036,3010.1,3010.0,0.5818]
[1764493352377,11.25643436,3010.1,3010.0,0.2914]
[1764493354211,11.04643436,3010.1,3010.0,0.2914]
[1764493354388,11.25643436,3010.1,3010.0,0.2914]
[1764493356289,10.32084025,3010.1,3010.0,0.2914]
[1764493356506,10.39765276,3010.1,3010.0,0.5818]
[1764493356706,11.12324687,3010.1,3010.0,0.5818]
[1764493356882,11.12324687,3010.1,3010.0,0.2914]
[1764493357698,11.12524687,3010.1,3010.0,0.2914]
[1764493358486,4.66524687,3010.1,3010.0,0.2914]
[1764493358695,4.76524687,3010.1,3010.0,0.2914]
[1764493358893,4.76524687,3010.1,3010.0,0.5818]
[1764493359819,4.55524687,3010.1,3010.0,0.5818]
[1764493360190,4.76524687,3010.1,3010.0,0.5818]
[1764493360590,4.76524687,3010.1,3010.0,0.2914]
[1764493363424,5.25274687,3010.1,3010.0,0.001]
[1764493363624,5.74674687,3010.1,3010.0,0.001]
[1764493363822,5.25274687,3010.1,3010.0,0.001]
[1764493364193,4.76524687,3010.1,3010.0,0.001]
[1764493364423,4.66524687,3010.1,3010.0,0.5818]
[1764493364622,4.76524687,3010.1,3010.0,0.5818]
[1764493365530,4.14974287,3010.1,3010.0,0.5818]
[1764493365695,4.35974287,3010.1,3010.0,0.5818]
[1764493366544,4.14974287,3010.1,3010.0,0.5818]
[1764493366697,4.35974287,3010.1,3010.0,0.5818]
[1764493371029,3.63414876,3010.1,3010.0,0.5818]
[1764493373147,0.002,3010.1,3010.0,0.5818]
[1764493373444,0.212,3010.1,3010.0,0.99875569]
[1764493374259,0.002,3010.1,3010.0,0.99875569]
[1764493374416,0.212,3010.1,3010.0,0.99875569]
[1764493375629,0.002,3010.1,3010.0,0.99875569]
[1764493377744,0.002,3010.1,3010.0,0.9655331]
[1764493380110,0.002,3010.1,3010.0,0.6751331]
[1764493380314,0.002,3010.1,3010.0,0.2914]
[1764493380545,0.002,3010.1,3010.0,3.80410618]
[1764493380914,0.002,3010.1,3010.0,0.5818]
[1764493382037,0.102,3010.1,3010.0,0.2914]
[1764493382345,4.36794876,3010.1,3010.0,0.001]
[1764493382553,5.13705722,3010.1,3010.0,0.001]
[1764493385044,4.03965276,3010.1,3010.0,0.001]
[1764493385513,4.98345276,3010.1,3010.0,0.001]
[1764493385840,5.70904687,3010.1,3010.0,0.001]
[1764493392677,5.49904687,3010.1,3010.0,0.001]
[1764493392869,5.70904687,3010.1,3010.0,0.001]
[1764493393041,6.62567122,3010.1,3010.0,0.001]
[1764493395632,6.75882679,3010.1,3010.0,0.001]
[1764493396848,6.85882679,3010.1,3010.0,0.001]
[1764493399562,13.21882679,3010.1,3010.0,0.001]
[1764493404462,12.52282679,3010.1,3010.0,0.001]
[1764493404656,16.30833297,3010.1,3010.0,0.001]
[1764493407038,16.09833297,3010.1,3010.0,0.001]
[1764493407269,16.30833297,3010.1,3010.0,0.001]
[1764493407564,11.55952279,3010.1,3010.0,0.2914]
[1764493407766,10.85289844,3010.1,3010.0,0.001]
[1764493408063,14.93380862,3010.1,3010.0,0.001]
[1764493408265,14.48070862,3010.1,3010.0,0.001]
[1764493408463,10.32280833,3010.1,3010.0,0.001]
[1764493408665,10.53280833,3010.1,3010.0,0.001]
[1764493408873,11.25840244,3010.1,3010.0,0.001]
[1764493409170,10.53280833,3010.1,3010.0,0.001]
[1764493409366,11.25840244,3010.1,3010.0,0.001]
[1764493409667,11.71150244,3010.1,3010.0,0.001]
[1764493410163,17.25811394,3010.1,3010.0,0.001]
[1764493411267,17.25811394,3010.1,3010.0,0.2914]
[1764493411268,16.35181394,3010.1,3010.0,0.2914]
[1764493411472,13.12950776,3010.1,3010.0,0.2914]
[1764493412446,13.12950776,3010.1,3010.0,0.001]
[1764493412875,16.80491394,3010.1,3010.0,0.001]
[1764493413764,17.25811394,3010.1,3010.0,0.001]
[1764493416575,13.37260776,3010.1,3010.0,0.001]
[1764493416763,11.71150244,3010.1,3010.0,0.001]
[1764493417078,12.16470244,3010.1,3010.0,0.001]
[1764493417962,11.71150244,3010.1,3010.0,0.001]
[1764493418482,14.27070862,3010.1,3010.0,0.001]
[1764493418787,14.48070862,3010.1,3010.0,0.001]
[1764493419346,0.002,3010.1,3010.0,3.80410618]
[1764493419583,0.002,3010.1,3010.0,0.96221062]
[1764493419760,3.32414876,3010.1,3010.0,0.5818]
[1764493420789,3.42414876,3010.1,3010.0,0.2914]
[1764493421458,3.32414876,3010.1,3010.0,0.5818]
[1764493421851,3.42414876,3010.1,3010.0,0.2914]
[1764493423692,3.63414876,3010.1,3010.0,0.2914]
[1764493423852,3.53414876,3010.1,3010.0,0.5818]
[1764493424059,3.32414876,3010.1,3010.0,0.5818]
[1764493424379,0.212,3010.1,3010.0,0.5818]
[1764493424570,0.212,3010.1,3010.0,0.96221062]
[1764493424760,0.212,3010.1,3010.0,0.5818]
[1764493432165,3.53414876,3010.1,3010.0,0.2914]
[1764493432590,3.53414876,3010.1,3010.0,0.5818]
[1764493433192,0.212,3010.1,3010.0,0.5818]
[1764493433463,0.002,3010.1,3010.0,0.5818]
[1764493437200,0.002,3010.1,3010.0,0.97222551]
[1764493437402,0.002,3010.1,3010.0,0.5818]
[1764493440510,0.002,3010.1,3010.0,3.90405913]
[1764493440989,0.002,3010.1,3010.0,3.93728172]
[1764493441697,0.002,3010.1,3010.0,0.5818]
[1764493442393,0.002,3010.1,3010.0,0.61502259]
[1764493442592,0.002,3010.1,3010.0,0.71837184]
[1764493442788,0.002,3010.1,3010.0,0.97554925]
[1764493442997,0.002,3010.1,3010.0,0.68514925]
[1764493443183,0.002,3010.1,3010.0,0.2914]
[1764493445197,0.002,3010.1,3010.0,0.001]
[1764493445198,0.4611,3010.1,3010.0,0.001]
[1764493445398,0.5611,3010.1,3010.0,0.001]
[1764493446287,2.17969811,3010.1,3010.0,0.001]
[1764493446487,3.06229083,3010.1,3010.0,0.001]
[1764493447303,6.38443959,3010.1,3010.0,0.001]
[1764493448704,6.28443959,3010.1,3010.0,0.001]
[1764493448907,6.38443959,3010.1,3010.0,0.001]
[1764493450605,4.55524687,3010.1,3010.0,0.001]
[1764493451001,5.40184687,3010.1,3010.0,0.001]
[1764493451208,5.50184687,3010.1,3010.0,0.001]
[1764493453780,5.01434687,3010.1,3010.0,0.001]
[1764493454132,5.30634287,3010.1,3010.0,0.001]
[1764493461321,6.58820684,3010.1,3010.0,0.001]
[1764493467306,6.72136728,3010.1,3010.0,0.001]
[1764493472346,6.51136728,3010.1,3010.0,0.001]
[1764493472549,6.71396728,3010.1,3010.0,0.001]
[1764493474632,6.50396728,3010.1,3010.0,0.001]
[1764493474835,6.23386728,3010.1,3010.0,0.001]
[1764493476052,6.10070684,3010.1,3010.0,0.001]
[1764493476545,6.58080684,3010.1,3010.0,0.001]
[1764493476720,6.10070684,3010.1,3010.0,0.001]
[1764493477838,5.64160684,3010.1,3010.0,0.2914]
[1764493478043,4.04974287,3010.1,3010.0,0.2914]
[1764493478355,4.25974287,3010.1,3010.0,0.5818]
[1764493478562,3.53414876,3010.1,3010.0,0.5818]
[1764493478859,3.63414876,3010.1,3010.0,0.5818]
[1764493480540,0.002,3010.1,3010.0,0.5818]
[1764493480742,3.53414876,3010.1,3010.0,0.5818]
[1764493482818,3.63414876,3010.1,3010.0,0.2914]
[1764493483549,3.63414876,3010.1,3010.0,0.001]
[1764493483840,3.63414876,3010.1,3010.0,0.2914]
[1764493484020,4.11894876,3010.1,3010.0,0.001]
[1764493484542,4.59904876,3010.1,3010.0,0.001]
[1764493485249,4.11894876,3010.1,3010.0,0.001]
[1764493487458,3.63414876,3010.1,3010.0,0.2914]
[1764493491984,3.32414876,3010.1,3010.0,0.5818]
[1764493492273,3.53414876,3010.1,3010.0,0.5818]
[1764493494067,0.002,3010.1,3010.0,0.5818]
[1764493494450,0.002,3010.1,3010.0,1.32772384]
[1764493495061,0.002,3010.1,3010.0,4.64998297]
[1764493495562,0.002,3010.1,3010.0,1.32772384]
[1764493498545,0.002,3010.1,3010.0,4.64998297]
[1764493498957,0.002,3010.1,3010.0,5.37557708]
[1764493500556,0.002,3010.5,3010.1,1.45459411]
[1764493500756,0.002,3010.5,3010.4,3.51328798]
[1764493501273,0.002,3011.2,3010.5,0.5808]
[1764493501461,0.002,3011.2,3010.7,3.51328798]
[1764493501968,0.002,3011.2,3010.7,3.80368798]
[1764493502642,0.002,3011.2,3010.7,7.12517467]
[1764493502841,0.002,3011.2,3010.7,8.16985176]
[1764493506561,0.002,3011.2,3010.7,8.37985176]
[1764493509577,0.002,3011.2,3010.7,9.10544587]
[1764493513286,0.002,3011.2,3010.8,0.72559411]
[1764493513593,0.002,3011.2,3010.8,1.33960787]
[1764493513751,0.002,3011.2,3010.8,2.93108639]
[1764493514482,0.002,3011.2,3010.8,2.89787263]
[1764493514675,0.002,3011.2,3010.8,2.93108639]
[1764493514864,0.002,3011.2,3010.8,6.219249]
[1764493515564,0.002,3011.2,3010.8,6.35228898]
[1764493516589,0.002,3011.2,3010.8,6.38550274]
[1764493516962,0.002,3011.2,3010.8,6.35228898]
[1764493518053,0.002,3011.2,3010.8,6.06188898]
[1764493518259,0.002,3011.2,3010.8,9.36173698]
[1764493519232,0.5014,3010.9,3010.8,1.59147852]
[1764493519368,0.5014,3010.9,3010.7,0.72559411]
[1764493519573,0.5014,3010.9,3010.6,3.22288798]
[1764493520074,0.5014,3010.9,3010.6,6.54447742]
[1764493520692,0.5014,3010.9,3010.5,0.72659411]
[1764493520898,0.5014,3010.9,3010.6,3.63883619]
[1764493520899,0.9604,3010.9,3010.6,3.63883619]
[1764493521564,0.5014,3010.9,3010.6,6.96037829]
[1764493521966,0.5014,3010.9,3010.6,3.63883619]
[1764493523209,0.002,3010.9,3010.8,0.2904]
[1764493523813,0.4576,3010.9,3010.6,6.96042939]
[1764493524017,0.4576,3010.9,3010.7,0.69614294]
[1764493524582,0.4576,3010.9,3010.8,0.2904]
[1764493524583,0.002,3010.9,3010.8,0.2904]
[1764493526195,0.002,3010.9,3010.8,6.86787811]
[1764493526382,0.002,3010.9,3010.8,7.12506435]
[1764493527296,0.002,3010.9,3010.8,3.51328798]
[1764493527491,0.002,3010.9,3010.8,7.6916019]
[1764493527684,0.002,3010.9,3010.8,7.65938814]
[1764493530631,0.002,3010.9,3010.8,1.11512379]
[1764493530818,0.4576,3010.9,3010.8,0.82472379]
[1764493531021,0.9422,3010.9,3010.8,0.001]
[1764493531606,0.4576,3010.9,3010.8,0.001]
[1764493531786,0.002,3010.9,3010.8,3.32237637]
[1764493531999,0.002,3010.9,3010.8,0.001]
[1764493532207,0.002,3010.9,3010.8,0.37485444]
[1764493533000,0.002,3010.9,3010.8,0.001]
[1764493533624,0.9422,3010.9,3010.8,0.001]
[1764493534729,1.1262,3010.9,3010.8,0.001]
[1764493534916,4.44746606,3010.9,3010.8,0.001]
[1764493542902,4.65746606,3010.9,3010.8,0.001]
[1764493548842,3.32326606,3010.9,3010.8,0.001]
[1764493549446,3.77886606,3010.9,3010.8,0.001]
[1764493550633,4.44746606,3010.9,3010.8,0.001]
[1764493550942,5.24532878,3010.9,3010.8,0.001]
[1764493551239,5.34532878,3010.9,3010.8,0.001]
[1764493551817,4.54746606,3010.9,3010.8,0.001]
[1764493553911,4.95297006,3010.9,3010.8,0.001]
[1764493554117,8.17351241,3010.9,3010.8,0.001]
[1764493554523,8.89910652,3010.9,3010.8,0.001]
[1764493556523,9.10910652,3010.9,3010.8,0.001]
[1764493556724,10.36544441,3010.9,3010.8,0.001]
[1764493560155,10.15544441,3010.9,3010.8,0.001]
[1764493560322,10.36544441,3010.9,3010.8,0.001]
[1764493560758,10.15544441,3010.9,3010.8,0.001]
[1764493560954,10.36544441,3010.9,3010.8,0.001]
[1764493561559,10.15544441,3010.9,3010.8,0.001]
[1764493561763,10.36544441,3010.9,3010.8,0.001]
[1764493562366,29.16076511,3010.8,3010.5,0.001]
[1764493562660,1.33109811,3010.5,3010.4,0.001]
[1764493562857,2.00779811,3010.5,3010.4,0.001]
[1764493563062,2.48189811,3010.5,3010.4,0.001]
[1764493563357,2.96545718,3010.5,3010.4,0.001]
[1764493564124,6.07716453,3010.5,3010.4,0.001]
[1764493564457,6.28716453,3010.5,3010.4,0.001]
[1764493565643,6.42030325,3010.5,3010.4,0.001]
[1764493566664,6.21030325,3010.5,3010.4,0.001]
[1764493566839,6.42030325,3010.5,3010.4,0.001]
[1764493567565,6.21030325,3010.5,3010.4,0.001]
[1764493567733,6.42030325,3010.5,3010.4,0.001]
[1764493569158,6.21030325,3010.5,3010.4,0.001]
[1764493569361,6.42030325,3010.5,3010.4,0.001]
[1764493570560,5.69470914,3010.5,3010.4,0.001]
[1764493570766,6.28716453,3010.5,3010.4,0.001]
[1764493571829,6.18716453,3010.5,3010.4,0.001]
[1764493572034,6.28716453,3010.5,3010.4,0.001]
[1764493572737,6.38716453,3010.5,3010.4,0.001]
[1764493573167,6.52031744,3010.5,3010.4,0.001]
[1764493574745,6.42031744,3010.5,3010.4,0.001]
[1764493580232,6.42231744,3010.5,3010.4,0.001]
[1764493583466,6.21231744,3010.5,3010.4,0.001]
[1764493583666,6.42231744,3010.5,3010.4,0.001]
[1764493587286,5.27151744,3010.5,3010.4,0.001]
[1764493587457,4.28245437,3010.5,3010.4,0.001]
[1764493587646,4.35930146,3010.5,3010.4,0.2924]
[1764493587842,4.76480546,3010.5,3010.4,0.2924]
[1764493588088,4.35930146,3010.5,3010.4,0.2924]
[1764493588389,4.55480546,3010.5,3010.4,0.2924]
[1764493588546,4.76480546,3010.5,3010.4,0.2924]
[1764493589785,4.25930146,3010.5,3010.4,0.2924]
[1764493589947,4.25930146,3010.5,3010.4,0.5838]
[1764493590142,3.32370735,3010.5,3010.4,0.5838]
[1764493590360,3.53370735,3010.5,3010.4,0.5838]
[1764493592475,3.53370735,3010.5,3010.4,0.2924]
[1764493592873,3.63370735,3010.5,3010.4,0.2924]
[1764493593189,4.10950735,3010.5,3010.4,0.001]
[1764493594308,3.63370735,3010.5,3010.4,0.001]
[1764493594849,3.63370735,3010.5,3010.4,0.2924]
[1764493595246,0.212,3010.5,3010.4,0.5838]
[1764493595779,3.53370735,3010.5,3010.4,0.5838]
[1764493596754,3.53370735,3010.5,3010.4,0.2924]
[1764493598584,3.53370735,3010.5,3010.4,7.12616004]
[1764493598585,0.002,3010.5,3010.4,7.12616004]
[1764493598787,0.002,3010.9,3010.5,1.43821011]
[1764493598972,0.002,3010.9,3010.8,3.51194235]
[1764493599181,0.002,3010.9,3010.8,0.5828]
[1764493601063,0.002,3010.9,3010.8,3.90417637]
[1764493602185,0.002,3010.9,3010.8,7.12471872]
[1764493602390,0.002,3010.9,3010.8,8.16933989]
[1764493602593,0.002,3011.2,3011.1,3.22054235]
[1764493602896,0.002,3011.2,3011.1,3.56204235]
[1764493603067,0.002,3011.2,3011.1,7.17448781]
[1764493608968,0.002,3011.2,3011.1,7.17448781]
[1764493609173,0.002,3011.2,3011.1,3.95394546]
[1764493609473,0.002,3011.2,3011.1,4.68145599]
[1764493610592,0.002,3011.2,3011.1,7.90023631]
[1764493612202,0.002,3011.2,3011.1,4.57919085]
[1764493613061,0.002,3011.2,3011.1,4.28779085]